{"text_format":"1","workbook":"xlsx","n_sheets":6,"sheets":["Recommendation","Fractions","Harder_Fractions","Degrees","Create","Proportion"],"not_rendered":{"charts":6,"images":5,"macros":0,"external_links":0,"defined_names":0,"comments":0,"pivot_tables":0},"unopened":[],"bounds":{"document_bytes":16777216,"sheet_cells":100000,"rows_first":2000,"rows_last":500,"rows_between":2000,"halvings":0,"cell_chars":16384,"cell_head_chars":4096},"cells_cut":0,"cells_raw":0,"read":"whole","date_system":"1900"}

{"sheet":"Recommendation","index":0,"n_rows":8,"n_cols":52,"rows_kept":8,"cut":false,"hidden":false,"merged":[]}
[]
[]
[]
[null,null,null,null,null,null,null,null,null,null,null,null,null,null,null,null,null,null,null,null,null,null,null,null,null,null,null,null,null,null,null,null,null,null,null,null,null,null,null,null,null,null,null,null,null,null,null,null,null,null,"Fruit & Veg",120]
[null,null,null,null,null,null,null,null,null,null,null,null,null,null,null,null,null,null,null,null,null,null,null,null,null,null,null,null,null,null,null,null,null,null,null,null,null,null,null,null,null,null,null,null,null,null,null,null,null,null,"Meat & Fish",45]
[null,null,null,null,null,null,null,null,null,null,null,null,null,null,null,null,null,null,null,null,null,null,null,null,null,null,null,null,null,null,null,null,null,null,null,null,null,null,null,null,null,null,null,null,null,null,null,null,null,null,"Fat & Sugar",30]
[null,null,null,null,null,null,null,null,null,null,null,null,null,null,null,null,null,null,null,null,null,null,null,null,null,null,null,null,null,null,null,null,null,null,null,null,null,null,null,null,null,null,null,null,null,null,null,null,null,null,"Milk & Diary",45]
[null,null,null,null,null,null,null,null,null,null,null,null,null,null,null,null,null,null,null,null,null,null,null,null,null,null,null,null,null,null,null,null,null,null,null,null,null,null,null,null,null,null,null,null,null,null,null,null,null,null,"Rice Bread Pasta",120]

{"sheet":"Fractions","index":1,"n_rows":12,"n_cols":53,"rows_kept":12,"cut":false,"hidden":false,"merged":[]}
[]
[null,null,null,null,null,null,null,null,null,null,null,null,null,null,null,null,null,null,null,null,null,null,null,null,null,null,null,null,null,null,null,"Calories","Fraction",null,null,null,null,null,null,null,null,null,null,null,null,null,null,null,null,null,null,null,5]
[null,null,null,null,null,null,null,null,null,null,null,null,null,null,null,null,null,null,null,null,null,null,null,null,null,null,null,null,null,null,{"$f":"AX5","v":"Fruit & Veg"},{"$f":"BA5","v":144},null,null,null,null,null,null,null,null,null,null,null,null,null,null,null,null,null,null,null,null,{"$f":"ROUND(RAND()*(10-2)+2,0)","v":6}]
[null,null,null,null,null,null,null,null,null,null,null,null,null,null,null,null,null,null,null,null,null,null,null,null,null,null,null,null,null,null,{"$f":"AX6","v":"Meat & Fish"},{"$f":"BA6","v":54},null,null,null,null,null,null,null,null,null,null,null,null,null,null,null,null,null,null,null,"U","units"]
[null,null,null,null,null,null,null,null,null,null,null,null,null,null,null,null,null,null,null,null,null,null,null,null,null,null,null,null,null,null,{"$f":"AX7","v":"Fat & Sugar"},36,null,null,null,null,null,null,null,null,null,null,null,null,null,null,null,null,null,"Fruit & Veg",120,{"$f":"AY5/360","v":0.33333333333333331},{"$f":"AY5/$BA$2*$BA$3","v":144}]
[null,null,null,null,null,null,null,null,null,null,null,null,null,null,null,null,null,null,null,null,null,null,null,null,null,null,null,null,null,null,{"$f":"AX8","v":"Milk & Diary"},54,null,null,null,null,null,null,null,null,null,null,null,null,null,null,null,null,null,"Meat & Fish",45,{"$f":"AY6/360","v":0.125},{"$f":"AY6/$BA$2*$BA$3","v":54}]
[null,null,null,null,null,null,null,null,null,null,null,null,null,null,null,null,null,null,null,null,null,null,null,null,null,null,null,null,null,null,{"$f":"AX9","v":"Rice Bread Pasta"},144,null,null,null,null,null,null,null,null,null,null,null,null,null,null,null,null,null,"Fat & Sugar",30,8.3333333333333329E-2,36]
[null,null,null,null,null,null,null,null,null,null,null,null,null,null,null,null,null,null,null,null,null,null,null,null,null,null,null,null,null,null,"Total",{"$f":"SUM(AF3:AF7)","v":432},null,null,null,null,null,null,null,null,null,null,null,null,null,null,null,null,null,"Milk & Diary",45,0.125,54]
[null,null,null,null,null,null,null,null,null,null,null,null,null,null,null,null,null,null,null,null,null,null,null,null,null,null,null,null,null,null,null,null,null,null,null,null,null,null,null,null,null,null,null,null,null,null,null,null,null,"Rice Bread Pasta",120,0.33333333333333331,144]
[]
[null,null,null,null,null,null,null,null,null,null,null,null,null,null,null,null,null,null,null,null,null,null,null,null,null,null,null,null,null,null,"Calculate the fraction each food category"]
[null,null,null,null,null,null,null,null,null,null,null,null,null,null,null,null,null,null,null,null,null,null,null,null,null,null,null,null,null,null,"covers in the Pie Chart in it simplest form."]

{"sheet":"Harder_Fractions","index":2,"n_rows":12,"n_cols":54,"rows_kept":12,"cut":false,"hidden":false,"merged":[]}
[]
[null,null,null,null,null,null,null,null,null,null,null,null,null,null,null,null,null,null,null,null,null,null,null,null,null,null,null,null,null,null,null,null,"Calories","Fractions",null,null,null,null,null,null,null,null,null,null,null,null,null,null,null,null,null,null,null,5]
[null,null,null,null,null,null,null,null,null,null,null,null,null,null,null,null,null,null,null,null,null,null,null,null,null,null,null,null,null,null,null,{"$f":"AY5","v":"Fruit & Veg"},{"$f":"AZ5","v":630},null,null,null,null,null,null,null,null,null,null,null,null,null,null,null,null,null,null,null,null,{"$f":"LCM(AW5,AW6,AW7,AW8)*10","v":5040}]
[null,null,null,null,null,null,null,null,null,null,null,null,null,null,null,null,null,null,null,null,null,null,null,null,null,null,null,null,null,null,null,{"$f":"AY6","v":"Meat & Fish"},{"$f":"AZ6","v":560},null,null,null,null,null,null,null,null,null,null,null,null,null,null,null,null,null,null,null,"U","units"]
[null,null,null,null,null,null,null,null,null,null,null,null,null,null,null,null,null,null,null,null,null,null,null,null,null,null,null,null,null,null,null,"Fat & Sugar",560,null,null,null,null,null,null,null,null,null,null,null,null,null,null,{"$f":"360*AX5","v":45},{"$f":"ROUND(RAND()*(10-6)+6,0)","v":8},{"$f":"1/AW5","v":0.125},"Fruit & Veg",{"$f":"AX5*$BB$3","v":630},{"$f":"AZ5/360","v":1.75},{"$f":"AZ5/$BB$2*$BB$3","v":635040}]
[null,null,null,null,null,null,null,null,null,null,null,null,null,null,null,null,null,null,null,null,null,null,null,null,null,null,null,null,null,null,null,"Milk & Diary",720,null,null,null,null,null,null,null,null,null,null,null,null,null,null,null,{"$f":"ROUND(RAND()*(10-6)+6,0)","v":9},{"$f":"1/AW6","v":0.1111111111111111},"Meat & Fish",{"$f":"AX6*$BB$3","v":560},{"$f":"AZ6/360","v":1.5555555555555556},{"$f":"AZ6/$BB$2*$BB$3","v":564480}]
[null,null,null,null,null,null,null,null,null,null,null,null,null,null,null,null,null,null,null,null,null,null,null,null,null,null,null,null,null,null,null,"Rice Bread Pasta",2570,null,null,null,null,null,null,null,null,null,null,null,null,null,null,null,{"$f":"ROUND(RAND()*(12-6)+6,0)","v":9},0.1111111111111111,"Fat & Sugar",560,1.5555555555555556,564480]
[null,null,null,null,null,null,null,null,null,null,null,null,null,null,null,null,null,null,null,null,null,null,null,null,null,null,null,null,null,null,null,"Total",{"$f":"SUM(AG3:AG7)","v":5040},null,null,null,null,null,null,null,null,null,null,null,null,null,null,null,{"$f":"ROUND(RAND()*(9-5)+5,0)","v":7},{"$f":"1/AW8","v":0.14285714285714285},"Milk & Diary",720,2,725760]
[null,null,null,null,null,null,null,null,null,null,null,null,null,null,null,null,null,null,null,null,null,null,null,null,null,null,null,null,null,null,null,null,null,null,null,null,null,null,null,null,null,null,null,null,null,null,null,null,null,{"$f":"1-SUM(AX5:AX8)","v":0.50992063492063489},"Rice Bread Pasta",{"$f":"AX9*$BB$3","v":2570},7.1388888888888893,2590560]
[null,null,null,null,null,null,null,null,null,null,null,null,null,null,null,null,null,null,null,null,null,null,null,null,null,null,null,null,null,null,null,null,null,null,null,null,null,null,null,null,null,null,null,null,null,null,null,null,null,{"$f":"SUM(AX5:AX9)","v":1}]
[null,null,null,null,null,null,null,null,null,null,null,null,null,null,null,null,null,null,null,null,null,null,null,null,null,null,null,null,null,null,null,"Calculate the fraction each food category"]
[null,null,null,null,null,null,null,null,null,null,null,null,null,null,null,null,null,null,null,null,null,null,null,null,null,null,null,null,null,null,null,"covers in the Pie Chart in it simplest form."]

{"sheet":"Degrees","index":3,"n_rows":13,"n_cols":53,"rows_kept":13,"cut":false,"hidden":false,"merged":[]}
[]
[null,null,null,null,null,null,null,null,null,null,null,null,null,null,null,null,null,null,null,null,null,null,null,null,null,null,null,null,null,null,null,"Calories","Degrees",null,null,null,null,null,null,null,null,null,null,null,null,null,null,null,null,null,null,null,5]
[null,null,null,null,null,null,null,null,null,null,null,null,null,null,null,null,null,null,null,null,null,null,null,null,null,null,null,null,null,null,{"$f":"AX5","v":"Fruit & Veg"},{"$f":"BA5","v":2070},115,null,null,null,null,null,null,null,null,null,null,null,null,null,null,null,null,null,null,null,{"$f":"ROUND(RAND()*(30-2)+2,0)","v":18}]
[null,null,null,null,null,null,null,null,null,null,null,null,null,null,null,null,null,null,null,null,null,null,null,null,null,null,null,null,null,null,{"$f":"AX6","v":"Meat & Fish"},{"$f":"BA6","v":900},40,null,null,null,null,null,null,null,null,null,null,null,null,null,null,null,null,null,null,"degrees","units"]
[null,null,null,null,null,null,null,null,null,null,null,null,null,null,null,null,null,null,null,null,null,null,null,null,null,null,null,null,null,null,"Fat & Sugar",1080,60,null,null,null,null,null,null,null,null,null,null,null,null,null,null,null,null,"Fruit & Veg",{"$f":"ROUND(RAND()*(26-20)+20,0)","v":23},{"$f":"AY5*$BA$2","v":115},{"$f":"$BA$3*AZ5","v":2070}]
[null,null,null,null,null,null,null,null,null,null,null,null,null,null,null,null,null,null,null,null,null,null,null,null,null,null,null,null,null,null,"Milk & Diary",630,40,null,null,null,null,null,null,null,null,null,null,null,null,null,null,null,null,"Meat & Fish",{"$f":"ROUND(RAND()*(10-7)+7,0)","v":10},{"$f":"AY6*$BA$2","v":50},{"$f":"$BA$3*AZ6","v":900}]
[null,null,null,null,null,null,null,null,null,null,null,null,null,null,null,null,null,null,null,null,null,null,null,null,null,null,null,null,null,null,"Rice Bread Pasta",1800,105,null,null,null,null,null,null,null,null,null,null,null,null,null,null,null,null,"Fat & Sugar",{"$f":"72-SUM(AY5,AY6,AY8,AY9)","v":12},60,1080]
[null,null,null,null,null,null,null,null,null,null,null,null,null,null,null,null,null,null,null,null,null,null,null,null,null,null,null,null,null,null,"Total",{"$f":"SUM(AF3:AF7)","v":6480},null,null,null,null,null,null,null,null,null,null,null,null,null,null,null,null,null,"Milk & Diary",{"$f":"ROUND(RAND()*(10-7)+7,0)","v":7},35,630]
[null,null,null,null,null,null,null,null,null,null,null,null,null,null,null,null,null,null,null,null,null,null,null,null,null,null,null,null,null,null,null,null,null,null,null,null,null,null,null,null,null,null,null,null,null,null,null,null,null,"Rice Bread Pasta",{"$f":"ROUND(RAND()*(26-18)+18,0)","v":20},100,1800]
[]
[null,null,null,null,null,null,null,null,null,null,null,null,null,null,null,null,null,null,null,null,null,null,null,null,null,null,null,null,null,null,"Calculate the centre angle of each"]
[null,null,null,null,null,null,null,null,null,null,null,null,null,null,null,null,null,null,null,null,null,null,null,null,null,null,null,null,null,null,"food category in the Pie Chart."]
[null,null,null,null,null,null,null,null,null,null,null,null,null,null,null,null,null,null,null,null,null,null,null,null,null,null,null,null,null,null,null,null,null,null,null,null,null,null,null,null,null,null,null,null,null,null,null,null,null,null,null,null,{"$f":"360/5","v":72}]

{"sheet":"Create","index":4,"n_rows":8,"n_cols":52,"rows_kept":8,"cut":false,"hidden":false,"merged":[]}
[]
[]
[]
[null,null,null,null,null,null,null,null,null,null,null,null,null,null,null,null,null,null,null,null,null,null,null,null,null,null,null,null,null,null,null,null,null,null,null,null,null,null,null,null,null,null,null,null,null,null,null,null,null,null,"Fruit & Veg",120]
[null,null,null,null,null,null,null,null,null,null,null,null,null,null,null,null,null,null,null,null,null,null,null,null,null,null,null,null,null,null,null,null,null,null,null,null,null,null,null,null,null,null,null,null,null,null,null,null,null,null,"Meat & Fish",45]
[null,null,null,null,null,null,null,null,null,null,null,null,null,null,null,null,null,null,null,null,null,null,null,null,null,null,null,null,null,null,null,null,null,null,null,null,null,null,null,null,null,null,null,null,null,null,null,null,null,null,"Fat & Sugar",30]
[null,null,null,null,null,null,null,null,null,null,null,null,null,null,null,null,null,null,null,null,null,null,null,null,null,null,null,null,null,null,null,null,null,null,null,null,null,null,null,null,null,null,null,null,null,null,null,null,null,null,"Milk & Diary",45]
[null,null,null,null,null,null,null,null,null,null,null,null,null,null,null,null,null,null,null,null,null,null,null,null,null,null,null,null,null,null,null,null,null,null,null,null,null,null,null,null,null,null,null,null,null,null,null,null,null,null,"Rice Bread Pasta",120]

{"sheet":"Proportion","index":5,"n_rows":8,"n_cols":52,"rows_kept":8,"cut":false,"hidden":false,"merged":[]}
[]
[]
[]
[null,null,null,null,null,null,null,null,null,null,null,null,null,null,null,null,null,null,null,null,null,null,null,null,null,null,null,null,null,null,null,null,null,null,null,null,null,null,null,null,null,null,null,null,null,null,null,null,null,null,"Fruit & Veg",120]
[null,null,null,null,null,null,null,null,null,null,null,null,null,null,null,null,null,null,null,null,null,null,null,null,null,null,null,null,null,null,null,null,null,null,null,null,null,null,null,null,null,null,null,null,null,null,null,null,null,null,"Meat & Fish",45]
[null,null,null,null,null,null,null,null,null,null,null,null,null,null,null,null,null,null,null,null,null,null,null,null,null,null,null,null,null,null,null,null,null,null,null,null,null,null,null,null,null,null,null,null,null,null,null,null,null,null,"Fat & Sugar",30]
[null,null,null,null,null,null,null,null,null,null,null,null,null,null,null,null,null,null,null,null,null,null,null,null,null,null,null,null,null,null,null,null,null,null,null,null,null,null,null,null,null,null,null,null,null,null,null,null,null,null,"Milk & Diary",45]
[null,null,null,null,null,null,null,null,null,null,null,null,null,null,null,null,null,null,null,null,null,null,null,null,null,null,null,null,null,null,null,null,null,null,null,null,null,null,null,null,null,null,null,null,null,null,null,null,null,null,"Rice Bread Pasta",120]